bitfinex/quotes_SOLUSD_20241223
["timestamp","ask_amount","ask_price","bid_price","bid_amount"]
[1734946328897,20.0,185.21,185.07,20.17419427]
[1734946329103,20.0,185.21,185.06,20.17419427]
[1734946329404,4.24974268,185.25,185.14,20.17419427]
[1734946331616,20.0,185.27,185.14,20.17419427]
[1734946332008,4.24974268,185.29,185.2,20.17419427]
[1734946332337,5.96376907,185.34,185.2,20.17419427]
[1734946332504,5.96376907,185.34,185.16,20.17419427]
[1734946332704,5.96376907,185.34,185.11,20.17419427]
[1734946332705,9.14750233,185.34,185.11,20.17419427]
[1734946333007,4.23579599,185.33,185.11,20.17419427]
[1734946333417,20.0,185.29,185.11,20.17419427]
[1734946333631,20.0,185.34,185.11,20.17419427]
[1734946333808,20.0,185.25,185.11,20.17419427]
[1734946334930,20.0,185.25,185.09,20.17419427]
[1734946335729,2.22738978,185.27,185.07,20.17419427]
[1734946335730,20.0,185.26,185.07,20.17419427]
[1734946335940,20.0,185.21,185.07,20.17419427]
[1734946336114,20.0,185.21,185.09,20.17419427]
[1734946336320,20.0,185.21,185.1,0.81009016]
[1734946336635,20.0,185.21,185.09,20.17419427]
[1734946338426,20.0,185.21,185.07,20.17419427]
[1734946342139,20.0,185.21,185.09,12.62280683]
[1734946343938,20.0,185.21,185.07,12.62280683]
[1734946344238,20.0,185.21,185.02,0.81029176]
[1734946344428,20.0,185.17,185.02,12.62280683]
[1734946345336,20.0,185.17,185.05,12.62280683]
[1734946346142,20.0,185.17,185.06,12.62280683]
[1734946346917,20.0,185.17,184.99,14.32413594]
[1734946346918,20.0,185.17,185.07,12.62280683]
[1734946347119,5.96376907,185.2,185.07,12.62280683]
[1734946347546,4.23579599,185.24,185.11,12.62280683]
[1734946347729,4.23579599,185.24,185.13,12.62280683]
[1734946347934,5.96376907,185.26,185.13,12.62280683]
[1734946348149,4.05813569,185.25,185.12,12.62280683]
[1734946348470,21.59382499,185.25,185.12,12.62280683]
[1734946348618,7.89520103,185.25,185.13,13.43283912]
[1734946348818,5.96376907,185.26,185.14,12.62280683]
[1734946349251,5.96376907,185.26,185.13,12.62280683]
[1734946350423,5.96376907,185.26,185.13,13.43274014]
[1734946350936,5.96376907,185.26,185.14,12.62280683]
[1734946351135,20.0,185.23,185.13,12.62280683]
[1734946351536,20.0,185.23,185.11,0.80997974]
[1734946351724,20.0,185.23,185.13,12.62280683]
[1734946352944,20.0,185.23,185.1,12.62280683]
[1734946353142,20.0,185.23,185.11,0.81008444]
[1734946353349,20.0,185.23,185.11,13.43289127]
[1734946353749,20.0,185.23,185.12,12.62280683]
[1734946354226,20.0,185.23,185.16,12.62280683]
[1734946354426,4.23579599,185.3,185.18,12.62280683]
[1734946354637,21.68836646,185.33,185.19,13.43249865]
[1734946355057,21.68836646,185.33,185.2,12.62280683]
[1734946355273,7.89520103,185.33,185.22,12.62280683]
[1734946355476,5.96376907,185.34,185.21,13.4323633]
[1734946355991,5.96376907,185.34,185.22,12.62280683]
[1734946356278,5.96376907,185.34,185.22,13.43234375]
[1734946356781,5.96376907,185.34,185.23,12.62280683]
[1734946357075,11.14860745,185.37,185.24,13.43225834]
[1734946357251,11.14860745,185.37,185.23,12.62280683]
[1734946357669,11.14860745,185.37,185.24,0.80942659]
[1734946358276,11.14860745,185.37,185.25,12.62280683]
[1734946358450,11.14860745,185.37,185.26,13.43214685]
[1734946358652,20.0,185.34,185.26,13.43214685]
[1734946359880,20.0,185.34,185.27,12.62280683]
[1734946360576,20.0,185.34,185.26,13.43213967]
[1734946361378,20.0,185.34,185.16,21.0304]
[1734946361379,20.0,185.34,185.23,12.62280683]
[1734946361551,20.0,185.34,185.21,12.62280683]
[1734946361752,20.0,185.34,185.19,12.62280683]
[1734946362079,20.0,185.34,185.16,33.65320683]
[1734946362487,20.0,185.33,185.17,12.62280683]
[1734946362695,20.0,185.31,185.17,12.62280683]
[1734946364599,20.0,185.31,185.15,12.62280683]
[1734946364767,20.0,185.28,185.14,13.43261322]
[1734946366399,20.0,185.28,185.16,12.62280683]
[1734946367699,20.0,185.28,185.15,12.62280683]
[1734946369179,20.0,185.28,185.14,12.62280683]
[1734946369388,22.19386887,185.28,185.14,12.62280683]
[1734946369919,2.19386887,185.28,185.09,12.62280683]
[1734946370090,20.0,185.24,185.08,12.62280683]
[1734946370288,20.0,185.24,185.07,12.62280683]
[1734946370591,25.96376907,185.24,185.07,12.62280683]
[1734946371026,20.0,185.24,185.01,21.05757218]
[1734946371184,20.0,185.2,185.06,12.62280683]
[1734946372084,20.0,185.2,185.08,12.62280683]
[1734946373008,5.29935261,185.23,185.1,12.62280683]
[1734946373983,5.29935261,185.23,185.09,12.62280683]
[1734946374183,20.0,185.2,185.09,12.62280683]
[1734946376898,20.0,185.22,185.12,12.62280683]
[1734946379126,20.0,185.22,185.13,13.43279524]
[1734946379325,5.96376907,185.25,185.14,12.62280683]
[1734946380230,5.96376907,185.25,185.14,13.43269032]
[1734946380919,20.0,185.22,185.14,13.43269032]
[1734946382035,20.0,185.25,185.14,13.43269032]
[1734946382335,5.96376907,185.29,185.18,12.62280683]
[1734946382532,9.73502974,185.3,185.18,12.62280683]
[1734946382832,2.12267042,185.31,185.15,12.62280683]
[1734946383038,5.96376907,185.3,185.15,12.62280683]
[1734946383222,5.96376907,185.3,185.14,13.43249064]
[1734946383422,20.0,185.27,185.14,13.43249064]
[1734946383618,20.0,185.27,185.15,12.62280683]
[1734946383822,20.0,185.27,185.17,12.62280683]
[1734946384134,5.96376907,185.3,185.2,12.62280683]
[1734946384446,21.43723089,185.36,185.22,12.62280683]
[1734946385152,17.3790952,185.36,185.23,13.43231071]
[1734946385317,12.07728979,185.36,185.23,13.43231071]
[1734946385512,20.0,185.33,185.23,13.43231071]
[1734946385733,20.0,185.33,185.23,0.80950388]
[1734946386044,20.0,185.33,185.22,12.62280683]
[1734946386541,20.0,185.33,185.21,13.43226908]
[1734946387143,24.05327365,185.33,185.17,12.62280683]
[1734946388036,24.05327365,185.33,185.18,13.43258869]
[1734946388227,24.05327365,185.33,185.21,12.62280683]
[1734946388424,20.0,185.33,185.22,13.43233306]
[1734946388741,20.0,185.34,185.22,13.43233306]
[1734946389129,20.0,185.34,185.22,0.80952623]
[1734946389321,20.0,185.34,185.22,13.43233306]
[1734946389723,20.0,185.34,185.22,0.80952623]
[1734946390649,20.0,185.34,185.21,12.62280683]
[1734946391726,20.0,185.34,185.2,12.62280683]
[1734946392025,20.0,185.34,185.19,12.62280683]
[1734946392224,20.0,185.34,185.19,13.43245577]
[1734946392442,20.0,185.34,185.2,12.62280683]
[1734946393314,20.0,185.34,185.19,13.4324479]
[1734946394340,20.0,185.34,185.19,0.80964107]
[1734946394546,20.0,185.34,185.19,12.62280683]
[1734946395848,24.05327365,185.34,185.19,12.62280683]
[1734946396964,24.05327365,185.34,185.21,12.62280683]
[1734946397171,11.14860745,185.37,185.26,12.62280683]
[1734946397318,11.14860745,185.37,185.29,12.62280683]
[1734946397654,11.14860745,185.37,185.3,0.80926145]
[1734946397860,11.14860745,185.37,185.25,8.89]
[1734946398639,20.0,185.34,185.25,8.89]
[1734946399151,20.0,185.34,185.25,21.51280683]
[1734946400551,20.0,185.34,185.25,8.89]
[1734946401067,20.0,185.34,185.26,0.80953214]
[1734946401647,20.0,185.34,185.25,21.51280683]
[1734946403162,20.0,185.34,185.27,12.62280683]
[1734946403460,20.0,185.34,185.26,0.80939424]
[1734946404042,20.0,185.34,185.26,13.43220107]
[1734946404566,20.0,185.34,185.25,21.51280683]
[1734946405764,20.0,185.34,185.26,0.80944928]
[1734946406638,20.0,185.34,185.25,21.51280683]
[1734946407069,20.0,185.34,185.25,8.89]
[1734946407960,20.0,185.34,185.25,21.51280683]
[1734946408160,20.0,185.34,185.26,0.80938633]
[1734946409455,20.0,185.34,185.27,12.62280683]
[1734946409656,20.0,185.34,185.28,0.80929151]
[1734946410571,20.0,185.34,185.26,13.43210749]
[1734946410986,20.0,185.34,185.26,0.80930066]
[1734946412157,20.0,185.34,185.21,6.9209]
[1734946412354,20.0,185.34,185.18,6.56746456]
[1734946412355,20.0,185.34,185.18,5.7579]
[1734946412674,20.0,185.3,185.17,6.9209]
[1734946413047,25.96376907,185.3,185.17,6.9209]
[1734946413470,25.96376907,185.3,185.13,18.38070683]
[1734946413784,20.0,185.26,185.13,25.41840683]
[1734946414179,20.0,185.26,185.14,12.62280683]
[1734946414559,20.0,185.26,185.13,26.22827118]
[1734946414888,3.09043119,185.25,185.13,7.0377]
[1734946415188,20.0,185.23,185.09,4.0131]
[1734946415406,20.0,185.23,185.08,6.4322]
[1734946415686,20.0,185.19,185.08,6.4322]
[1734946415863,20.0,185.19,185.04,4.1581]
[1734946415864,20.0,185.19,185.04,16.78090683]
[1734946416197,20.0,185.19,185.06,12.62280683]
[1734946416368,20.0,185.19,185.05,0.81038807]
[1734946416575,20.0,185.19,185.11,12.62280683]
[1734946416898,8.45911113,185.28,185.04,16.78090683]
[1734946416899,5.96376907,185.26,185.15,12.62280683]
[1734946417186,13.76091654,185.32,185.18,12.62280683]
[1734946417381,13.76091654,185.32,185.16,13.43258933]
[1734946417581,5.96376907,185.31,185.16,13.43258933]
[1734946418090,5.96376907,185.31,185.17,12.62280683]
[1734946418289,5.96376907,185.31,185.17,20.18017756]
[1734946418791,5.96376907,185.31,185.19,20.18017756]
[1734946419806,20.0,185.28,185.17,20.18017756]
[1734946420897,20.0,185.28,185.18,20.9899115]
[1734946421401,20.0,185.28,185.16,20.18017756]
[1734946421574,20.0,185.28,185.15,24.49607756]
[1734946422470,20.0,185.28,185.16,20.99002748]
[1734946422695,20.0,185.28,185.17,20.18017756]
[1734946422899,20.0,185.28,185.18,20.18017756]
[1734946423700,20.0,185.28,185.16,20.99002748]
[1734946424699,20.0,185.28,185.15,4.3159]
[1734946426604,20.0,185.28,185.16,20.18017756]
[1734946426805,20.0,185.28,185.15,24.49607756]
[1734946426998,20.0,185.28,185.16,20.18017756]
[1734946428005,20.0,185.28,185.15,4.3159]
[1734946428305,2.1611473,185.29,185.13,6.5079]
[1734946428479,20.0,185.24,185.08,6.8595]
[1734946428675,2.87333788,185.23,185.08,6.8595]
[1734946428995,20.0,185.2,185.08,6.8595]
[1734946431183,20.0,185.2,185.08,27.84984206]
[1734946431379,20.0,185.2,185.09,20.18017756]
[1734946431585,20.0,185.2,185.1,20.99023057]
[1734946432006,20.0,185.2,185.1,0.81005301]
[1734946432193,20.0,185.2,185.09,20.18017756]
[1734946432695,20.0,185.2,185.1,0.81012714]
[1734946433509,20.0,185.2,185.09,20.18017756]
[1734946434081,20.0,185.2,185.08,6.8595]
[1734946434490,20.0,185.17,185.08,6.8595]
[1734946435419,20.0,185.21,185.03,6.8053]
[1734946435712,20.0,185.13,185.03,6.8053]
[1734946436293,20.0,185.13,185.03,26.98547756]
[1734946436509,20.0,185.13,185.0,4.1009]
[1734946437893,20.0,185.13,185.0,24.28107756]
[1734946438417,20.0,185.13,185.0,4.1009]
[1734946439908,2.18653043,185.14,184.98,6.8471]
[1734946439909,20.0,185.09,184.98,6.8471]
[1734946440095,20.0,185.09,184.96,4.4007]
[1734946440798,20.0,185.11,184.93,6.592]
[1734946441144,20.0,185.05,184.88,6.3208]
[1734946441484,20.0,185.01,184.88,6.3208]
[1734946441685,20.0,185.01,184.89,20.18017756]
[1734946441881,20.0,185.0,184.9,20.18017756]
[1734946442117,20.0,185.0,184.92,20.18017756]
[1734946442319,9.64640812,185.17,184.96,20.18017756]
[1734946442622,10.19956506,185.16,184.97,20.18017756]
[1734946442918,10.19956506,185.16,184.98,20.18017756]
[1734946443127,8.45911113,185.15,184.99,20.18017756]
[1734946443501,5.96376907,185.14,184.98,26.71207756]
[1734946443701,5.96376907,185.14,184.98,27.52269305]
[1734946443904,5.96376907,185.14,184.98,26.71207756]
[1734946444284,5.96376907,185.14,184.98,6.5319]
[1734946444691,20.0,185.11,184.98,6.5319]
[1734946445197,20.0,185.07,184.93,6.3101]
[1734946445600,25.96376907,185.07,184.93,6.3101]
[1734946445916,25.96376907,185.07,184.93,7.12096551]
[1734946446131,25.96376907,185.07,184.95,20.18017756]
[1734946446324,25.96376907,185.07,184.95,12.64260219]
[1734946446919,25.96376907,185.07,184.94,12.64260219]
[1734946447297,25.96376907,185.07,184.95,12.64260219]
[1734946449026,25.96376907,185.07,184.93,6.3101]
[1734946449215,20.0,185.03,184.88,6.6413]
[1734946449609,20.0,184.99,184.88,6.6413]
[1734946449923,20.0,184.99,184.87,4.1007]
[1734946451193,20.0,184.99,184.88,12.64260219]
[1734946451389,20.0,184.99,184.87,17.55453115]
[1734946452229,20.0,184.99,184.87,25.15812729]
[1734946452441,20.0,184.99,184.87,24.34689833]
[1734946452848,20.0,184.99,184.84,0.81107396]
[1734946453144,20.0,184.99,184.86,20.24619833]
[1734946453738,20.0,184.99,184.85,20.24619833]
[1734946453939,20.0,184.99,184.84,21.05727229]
[1734946454108,20.0,184.99,184.83,6.7517]
[1734946454420,5.96376907,184.98,184.83,6.7517]
[1734946454602,20.0,184.95,184.83,6.7517]
[1734946456633,20.0,184.95,184.85,20.24619833]
[1734946457006,20.0,184.95,184.84,20.24619833]
[1734946458123,20.0,184.95,184.83,26.99789833]
[1734946458310,20.0,184.95,184.83,6.7517]
[1734946458836,20.0,184.95,184.81,20.93719003]
[1734946458837,20.0,184.91,184.81,0.6909917]
[1734946461059,20.0,184.91,184.82,0.81144371]
[1734946461223,20.0,184.99,184.83,20.24619833]
[1734946461421,20.0,184.95,184.85,20.24619833]
[1734946461834,20.0,184.95,184.84,20.24619833]
[1734946462546,5.96376907,184.98,184.86,20.24619833]
[1734946462730,5.96376907,184.98,184.84,0.81121985]
[1734946462731,4.23579599,185.05,184.87,21.05729486]
[1734946462930,5.96376907,185.02,184.88,6.2223]
[1734946464148,20.0,184.99,184.88,6.2223]
[1734946464621,20.0,185.02,184.84,6.3491]
[1734946464816,20.0,184.95,184.84,6.3491]
[1734946467552,22.15227412,184.98,184.81,0.6909917]
[1734946467744,20.0,184.91,184.81,0.6909917]
[1734946470952,20.0,184.89,184.81,0.6909917]
[1734946471450,20.0,184.88,184.81,0.6909917]
[1734946472762,20.0,184.88,184.69,0.81159126]
[1734946472763,20.0,184.88,184.71,6.5887]
[1734946472928,2.73533566,184.87,184.71,6.5887]
[1734946473129,20.0,184.84,184.7,3.9058]
[1734946473554,26.03277018,184.83,184.7,3.9058]
[1734946475037,26.03277018,184.83,184.66,10.738]
[1734946475361,20.0,184.79,184.62,0.6909917]
[1734946475536,1.04960993,184.78,184.62,0.6909917]
[1734946475739,20.0,184.75,184.64,20.24619833]
[1734946475955,11.33212279,184.78,184.66,20.24619833]
[1734946476159,8.23028461,184.82,184.66,20.24619833]
[1734946476354,5.29935261,184.86,184.65,20.24619833]
[1734946476674,7.06207282,184.81,184.63,20.24619833]
[1734946476840,7.06207282,184.81,184.64,21.05832811]
[1734946477030,7.06207282,184.81,184.63,20.24619833]
[1734946477230,20.0,184.78,184.62,0.6909917]
[1734946477461,6.38222324,184.81,184.64,20.24619833]
[1734946477663,20.0,184.75,184.64,20.24619833]
[1734946477964,20.0,184.75,184.63,20.24619833]
[1734946478172,20.0,184.75,184.62,21.74937759]
[1734946478372,20.0,184.78,184.62,0.6909917]
[1734946478542,20.0,184.71,184.62,0.6909917]
[1734946479245,20.0,184.74,184.62,0.6909917]
[1734946479443,20.0,184.67,184.62,0.6909917]
[1734946479745,20.0,184.63,184.62,0.6909917]
[1734946484174,6.03277018,184.66,184.62,0.6909917]
[1734946486197,20.0,184.63,184.62,0.6909917]
[1734946487147,23.89042288,184.7,184.63,10.5639]
[1734946488659,20.0,184.68,184.63,10.5639]
[1734946497369,20.0,184.67,184.63,10.5639]
[1734946497676,3.89042288,184.69,184.62,0.6909917]
[1734946497677,20.0,184.66,184.62,0.6909917]
[1734946498293,23.96269853,184.66,184.62,0.6909917]
[1734946498684,20.0,184.65,184.62,0.6909917]
[1734946505982,20.0,184.66,184.62,0.6909917]
[1734946506403,20.0,184.66,184.63,6.2648]
[1734946506611,20.0,184.66,184.64,3.9271]
[1734946508908,23.10284943,184.68,184.64,3.9271]
[1734946509695,3.10284943,184.68,184.64,3.9271]
[1734946510206,3.96269853,184.71,184.64,3.9271]
[1734946510386,3.10284942,184.73,184.64,17.43634357]
[1734946510582,3.10284942,184.73,184.64,3.9271]
[1734946512191,3.77262952,184.73,184.64,3.9271]
[1734946512403,21.45717967,184.86,184.66,23.76575627]
[1734946512404,3.89042288,184.78,184.66,23.76575627]
[1734946512582,6.78359816,184.84,184.68,6.8106]
[1734946512781,15.79349174,184.86,184.72,12.69705627]
[1734946513101,16.33304623,184.86,184.73,11.0687]
[1734946513286,6.78359816,184.86,184.74,0.81165701]
[1734946513694,6.78359816,184.86,184.75,11.0687]
[1734946513907,3.89042288,184.91,184.76,13.50861311]
[1734946514085,10.67402104,184.91,184.77,12.69705627]
[1734946514290,10.67402104,184.91,184.78,11.88015361]
[1734946514508,10.67402104,184.91,184.78,24.57720988]
[1734946514686,10.67402104,184.91,184.79,12.69705627]
[1734946514883,9.54944807,184.96,184.81,23.76575627]
[1734946515210,2.69070354,184.96,184.82,0.81125]
[1734946515993,2.69070354,184.96,184.81,11.0687]
[1734946517407,20.0,184.94,184.81,11.0687]
[1734946518397,20.0,184.91,184.81,11.0687]
[1734946518598,20.0,184.9,184.81,11.0687]
[1734946520083,2.14129748,184.94,184.81,11.0039]
[1734946520317,20.0,184.9,184.81,4.26320154]
[1734946520497,20.0,184.9,184.67,12.69705627]
[1734946520686,20.0,184.86,184.66,12.69705627]
[1734946520887,20.0,184.86,184.63,0.81194552]
[1734946521109,20.0,184.82,184.64,12.69705627]
[1734946521409,20.0,184.82,184.63,13.50900179]
[1734946521612,26.67395102,184.82,184.63,13.50900179]
[1734946522517,26.67395102,184.82,184.65,12.69705627]
[1734946522704,26.67395102,184.82,184.66,0.81191967]
[1734946522900,26.67395102,184.82,184.68,12.69705627]
[1734946523087,20.0,184.83,184.69,13.50886319]
[1734946523283,8.80083803,184.87,184.71,4.2503]
[1734946523496,6.67395102,184.87,184.73,6.1593]
[1734946525713,20.0,184.84,184.73,6.1593]
[1734946528538,20.0,184.84,184.73,6.97095591]
[1734946529058,20.0,184.84,184.73,6.1593]
[1734946531150,1.45297396,184.84,184.73,6.1593]
[1734946531439,20.0,184.81,184.73,6.1593]
[1734946540047,6.67395102,184.84,184.76,6.4541]
[1734946540227,12.17721488,184.91,184.8,6.4541]
[1734946540442,8.45911113,184.92,184.82,10.5818]
[1734946540652,20.36684273,184.94,184.83,0.81128817]
[1734946540948,15.13306215,184.94,184.83,0.81128817]
[1734946541159,1.45297396,184.93,184.82,10.5818]
[1734946541455,8.41166457,184.93,184.82,10.5602]
[1734946541750,20.0,184.9,184.82,10.5602]
[1734946542231,20.0,184.86,184.82,10.5602]
[1734946542643,2.90594792,184.85,184.82,10.5602]
[1734946545973,2.90594792,184.85,184.77,3.9394]
[1734946546457,20.0,184.82,184.77,3.9394]
[1734946546831,22.90594792,184.82,184.77,3.9394]
[1734946549069,22.90594792,184.82,184.78,6.6039]
[1734946549936,2.90594792,184.81,184.77,3.9394]
[1734946550254,20.0,184.78,184.77,3.9394]
[1734946555254,20.0,184.78,184.73,10.7452]
[1734946555555,6.67395102,184.77,184.73,10.7452]
[1734946555864,20.0,184.74,184.73,10.7452]
[1734946573878,8.48095728,184.79,184.73,10.7452]
[1734946574178,8.48095728,184.78,184.73,10.7452]
[1734946574980,6.67435753,184.81,184.73,10.7452]
[1734946575662,20.0,184.78,184.73,10.7452]
[1734946576186,6.67435753,184.81,184.74,4.0376]
[1734946576348,22.09814097,184.84,184.78,16.72222931]
[1734946576553,22.09814097,184.84,184.79,18.89362931]
[1734946576756,22.09814097,184.84,184.8,4.0376]
[1734946577052,8.48095728,184.84,184.8,4.0376]
[1734946577253,13.61718369,184.87,184.8,4.0376]
[1734946577663,9.54944807,184.87,184.8,4.0376]
[1734946577874,8.48095728,184.89,184.8,4.0376]
[1734946578581,8.48095728,184.88,184.8,4.0376]
[1734946579175,20.0,184.85,184.8,4.0376]
[1734946580487,20.0,184.86,184.8,4.0376]
[1734946582980,20.0,184.82,184.8,4.0376]
[1734946583387,13.09164682,184.85,184.8,4.0376]
[1734946583567,8.48095728,184.85,184.8,4.0376]
[1734946583758,8.48095728,184.85,184.8,16.72222931]
[1734946583963,8.48095728,184.85,184.81,13.49615061]
[1734946584374,16.96191457,184.86,184.82,10.6778]
[1734946584571,8.47945847,184.91,184.82,10.6778]
[1734946584992,51.45035553,184.94,184.82,10.6778]
[1734946585176,20.0,184.91,184.82,10.6778]
[1734946596595,3.48882761,184.91,184.82,10.6778]
[1734946596789,23.48882761,184.91,184.82,10.6778]
[1734946598882,20.0,184.92,184.82,10.6778]
[1734946599696,20.0,184.93,184.82,10.6778]
[1734946601877,4.06379995,184.96,184.87,10.5603]
[1734946602076,47.6717287,184.97,184.88,0.81104028]
[1734946602302,13.74789956,184.97,184.88,0.81104028]
[1734946602474,2.15403171,184.99,184.88,0.81104028]
[1734946602688,22.61793877,185.01,184.88,0.81104028]
[1734946603118,20.0,184.98,184.88,0.81104028]
[1734946603610,20.0,184.98,184.88,8.91791555]
[1734946603820,5.6560242,185.01,184.91,18.95547527]
[1734946604001,5.6560242,185.01,184.86,32.42750108]
[1734946604002,50.88574371,185.03,184.94,6.5922]
[1734946605115,53.09716629,185.03,184.94,6.5922]
[1734946605613,20.0,185.01,184.94,6.5922]
[1734946620922,1.12186193,185.01,184.94,6.5922]
[1734946621124,20.0,184.98,184.94,6.5922]
[1734946624718,3.89042288,185.07,184.96,6.6432]
[1734946624917,49.74601932,185.09,184.98,6.6432]
[1734946625122,28.72248037,185.09,184.99,4.1064]
[1734946625300,19.06768492,185.09,185.0,13.45695817]
[1734946625501,11.16487214,185.09,185.02,4.1064]
[1734946625707,11.16487214,185.09,185.02,4.91689043]
[1734946625907,5.6560242,185.14,185.04,12.64638509]
[1734946626114,21.61923261,185.16,185.09,12.64638509]
[1734946626316,7.90281278,185.16,185.09,12.64638509]
[1734946626606,7.90281278,185.16,185.07,0.81014056]
[1734946626607,4.06162438,185.17,185.1,10.1527]
[1734946626830,16.88519615,185.16,185.1,10.1527]
[1734946627220,20.0,185.13,185.1,10.1527]
[1734946627831,16.88519615,185.16,185.1,10.1527]
[1734946628018,16.88519615,185.16,185.11,12.64638509]
[1734946628215,16.88519615,185.3,185.11,13.4565375]
[1734946628418,3.89042288,185.24,185.11,13.4565375]
[1734946629002,3.89042288,185.24,185.12,12.64638509]
[1734946629335,2.18928191,185.26,185.14,10.1645]
[1734946629635,4.7385983,185.29,185.14,10.1645]
[1734946630510,20.0,185.24,185.14,10.1645]
[1734946636740,5.6560242,185.27,185.14,10.1645]
[1734946636741,5.6560242,185.27,185.16,12.64638509]
[1734946636952,2.82010638,185.28,185.17,6.409]
[1734946637849,2.82010638,185.28,185.18,4.0546]
[1734946638643,0.6909917,185.28,185.2,4.0546]
[1734946638834,0.6909917,185.28,185.21,19.05538509]
[1734946639038,0.6909917,185.28,185.23,4.0546]
[1734946643254,0.6909917,185.28,185.24,6.6794]
[1734946646241,0.6909917,185.28,185.23,4.0546]
[1734946647034,0.6909917,185.28,185.19,6.1839]
[1734946647652,20.0,185.27,185.19,6.1839]
[1734946647849,20.0,185.27,185.18,4.0382]
[1734946651459,24.7385983,185.27,185.18,4.0382]
[1734946652065,20.0,185.23,185.18,4.0382]
[1734946656042,22.18125425,185.23,185.18,4.0382]
[1734946656252,2.18125425,185.23,185.13,4.1706]
[1734946656452,20.0,185.19,185.13,4.1706]
[1734946656665,20.0,185.19,185.13,0.55402517]
[1734946659364,20.0,185.19,185.14,6.0912]
[1734946664759,20.0,185.19,185.13,0.55402517]
[1734946665073,20.0,185.19,185.1,6.668]
[1734946665772,20.0,185.17,185.1,6.668]
[1734946681676,20.0,185.14,185.08,4.002]
[1734946682164,4.7385983,185.22,185.09,8.89030009]
[1734946682370,16.88519615,185.21,185.11,8.07999435]
[1734946682859,16.88519615,185.21,185.14,8.07999435]
[1734946683059,9.51175542,185.24,185.17,6.4207]
[1734946683292,4.05460575,185.26,185.17,6.4207]
[1734946683499,28.53689156,185.27,185.17,6.4207]
[1734946683668,19.02513614,185.27,185.17,6.4207]
[1734946683984,2.13993999,185.27,185.17,6.4207]
[1734946684194,20.6909917,185.28,185.17,6.4207]
[1734946684562,20.0,185.25,185.17,6.4207]
[1734946685278,20.0,185.24,185.17,6.4207]
[1734946685899,16.88519615,185.27,185.17,6.4207]
[1734946686072,7.65806873,185.28,185.17,6.4207]
[1734946686590,4.7385983,185.27,185.12,10.6704]
[1734946687096,20.0,185.25,185.12,10.6704]
[1734946687281,20.0,185.2,185.12,10.6704]
[1734946687980,20.0,185.19,185.12,10.6704]
[1734946688577,20.0,185.2,185.12,10.6704]
[1734946689303,20.0,185.22,185.12,10.6704]
[1734946689780,24.7385983,185.22,185.12,10.6704]
[1734946690097,20.0,185.21,185.12,10.6704]
[1734946690885,20.0,185.2,185.12,10.6704]
[1734946691674,20.0,185.21,185.12,10.6704]
[1734946692977,20.0,185.2,185.12,10.6704]
[1734946693700,20.0,185.19,185.12,10.6704]
[1734946694387,20.0,185.19,184.98,4.0443]
[1734946694595,20.0,185.19,185.0,4.0443]
[1734946694889,21.53291141,185.19,185.0,4.0443]
[1734946695105,20.0,185.17,185.0,4.0443]
[1734946695778,20.0,185.16,185.0,4.0443]
[1734946696431,23.71665736,185.16,185.0,4.0443]
[1734946696914,20.0,185.11,185.0,4.0443]
[1734946697281,20.0,185.09,185.0,4.0443]
[1734946697612,4.25116876,185.08,185.0,1e-08]
[1734946697803,138.2,184.97,184.86,6.4285]
[1734946698107,4.25116876,185.08,184.86,6.4285]
[1734946698289,20.0,185.03,184.86,6.4285]
[1734946698788,24.25116876,185.03,184.86,6.4285]
[1734946699195,20.0,185.01,184.86,6.4285]
[1734946699580,20.0,185.01,184.87,6.6137]
[1734946699786,24.25116876,185.03,184.92,12.62360907]
[1734946700094,16.88519615,185.06,184.94,6.6137]
[1734946700288,19.02568253,185.06,184.94,6.6137]
[1734946700496,2.14048638,185.06,184.94,6.6137]
[1734946700702,4.25116876,185.08,184.94,6.6137]
[1734946700908,4.25116876,185.08,184.95,4.0719]
[1734946701484,20.0,185.05,184.95,4.0719]